Cogmind - Beta 14 @@@ ROGUE MODE // 2024.08.20 @ 17:16:22 Player: szymekc Result: Destroyed by QJ-2KG(R) with Subdweller Beam Cannon Performance ------------- Evolutions (0) 0 Regions Visited (2) 400 Robots Destroyed (21) 105 Value Destroyed (324) 324 Prototype IDs (0) 0 Alien Tech Used (0) 0 Bonus (0) 0 TOTAL SCORE: 829 Bonus ------- None Cogmind --------- Core Integrity 0/250 Matter 300/300 Energy 100/100 System Corruption 0% Temperature Hot (243) Movement Flying (40) Location -10/Subcaves Parts ------- > --- POWER (1) -------- (None) > --- PROPULSION (2) --- Flight Unit > --- UTILITY (2) ------ (None) > --- WEAPON (2) ------- (None) > --- INVENTORY (5) ---- Compact Wheel Medium Storage Unit High-capacity Storage Unit Light Assault Rifle Peak State ------------ > --- POWER ------------ Ion Engine > --- PROPULSION ------- Light Treads Aluminum Leg > --- UTILITY ---------- Medium Storage Unit > --- WEAPON ----------- Particle Gun Enhanced Flamer > --- INVENTORY -------- Light Ion Engine Aluminum Leg Wheel Compact Wheel Flight Unit Flight Unit High-capacity Storage Unit Small Laser Light Assault Rifle Shrapnel Trap [Rating: 10] Favorites ----------- Power Light Ion Engine Engine Light Ion Engine Propulsion Light Treads Treads Light Treads Leg Aluminum Leg Flight Unit Flight Unit Utility Medium Storage Unit Device Seismic Detector Storage Medium Storage Unit Weapon Particle Gun Energy Gun Particle Gun Ballistic Gun Light Assault Rifle Special Weapon Enhanced Flamer Build | -11 -10 -10 ------- Run | Yrd Mat Sub Slots Evolved . | . . . Power . | . . . Propulsion . | . . . Utility . | . . . Weapon . | . . . Parts Attached 13 | 1 8 4 Power 2 | . 1 1 Engine 2 | . 1 1 Core . | . . . Reactor . | . . . Propulsion 5 | . 3 2 Treads 2 | . 2 . Leg 1 | . 1 . Wheel . | . . . Hover . | . . . Flight 2 | . . 2 Utility 2 | 1 1 . Device 1 | 1 . . Storage 1 | . 1 . Processor . | . . . Hackware . | . . . Protection . | . . . Artifact . | . . . Weapon 4 | . 3 1 Energy Gun 2 | . 2 . Energy Cannon . | . . . Ballistic Gun 1 | . 1 . Ballistic Cannon . | . . . Launcher . | . . . Special Weapon 1 | . . 1 Impact Weapon . | . . . Slashing Weapon . | . . . Piercing Weapon . | . . . Special Melee Weapon . | . . . Unidentified Prototypes . | . . . Parts Lost 8 | . 4 4 Power 2 | . 1 1 Propulsion 2 | . 1 1 Utility 1 | . 1 . Weapon 3 | . 1 2 Highest Loss Streak 4 | . 2 4 To Critical Strikes . | . . . Average Slot Usage (%) 81 | . 88 75 Engine 11 | . 8 13 Treads 13 | . 22 5 Leg 5 | . 5 5 Flight 8 | . . 16 Device 4 | . 9 . Storage 9 | . 14 5 Energy Gun 12 | . 10 13 Ballistic Gun 10 | . 17 3 Special Weapon 5 | . . 9 Peak Build Rating 10 | 7 7 10 Average Rating 7 | 6 6 7 On Entrance 6 | 6 7 7 Naked Turns . | . . . Heaviest Build 20 | 11 19 20 Greatest Support 40 | 20 40 20 Greatest Overweight (x) . | . . . Average Overweight (x) . | . . . Largest Inventory Capacity 10 | 8 10 10 Average Capacity 8 | 8 9 6 Most Carried 10 | 6 8 10 Average Carried 5 | 6 5 5 Final Capacity 10 | 8 10 5 Final Carried 6 | 6 6 4 Class Distribution -------------------- 100% | Mutant Dominant Class ---------------- Mutant | -10/Materials Mutant | -10/Subcaves Resources | -11 -10 -10 ----------- Run | Yrd Mat Sub Matter Collected 387 | 236 104 47 Remotely . | . . . Salvage Created 520 | 185 249 86 Parts 40 | 9 18 13 Haulers Intercepted . | . . . Recyclers Shooed . | . . . Parts Field Recycled . | . . . Retrieved Matter . | . . . Parts Self-Destructed 10 | . . 10 Prevented . | . . . Kills | -11 -10 -10 ------- Run | Yrd Mat Sub Combat Hostiles Destroyed 15 | . 8 7 Guns 13 | . 8 5 Cannons 2 | . . 2 Classes Destroyed 5 | 2 2 1 Tunneler 5 | 5 . . Recycler 1 | 1 . . Swarmer 10 | . 3 7 Grunt 5 | . 5 . Artisan 1 | . . 1 Best Kill Streak 4 | 3 4 4 Combat Bots Only 4 | . 4 4 Max Kills in Single Turn 2 | 1 1 2 Gunslinging 1 | . . 1 Exploded . | . . . Melee . | . . . Uniques/NPCs Destroyed . | . . . Combat | -11 -10 -10 -------- Run | Yrd Mat Sub Hostile Shots Fired 103 | . 62 41 Missed 23 | . 14 9 Damage Taken 961 | . 506 455 Core 252 | . 66 186 Absorbed by Shields . | . . . Core Remaining (%) 100 | 100 . . Volleys Fired 76 | 26 30 20 Largest 2 | 2 2 2 Hottest 145 | 60 85 145 Shots Fired 142 | 52 60 30 Gun 129 | 52 60 17 Cannon . | . . . Launcher . | . . . Special 13 | . . 13 Kinetic 77 | 26 44 7 Thermal 65 | 26 16 23 Explosive . | . . . Electromagnetic . | . . . Robot Hit Streak 17 | 7 17 5 Robot Miss Streak 3 | 2 3 2 Penetration Max . | . . . Secondary Targets 4 | . 3 1 Max Gunslinging Chain 1 | . 1 1 Shots Hit Robots 98 | 36 45 17 Core Hits 37 | 11 17 9 Critical Kills . | . . . Critical Parts Destroyed . | . . . Critical Strikes 1 | . . 1 Burn 1 | . . 1 Melee Attacks . | . . . Impact . | . . . Slashing . | . . . Piercing . | . . . Sneak Attacks . | . . . Combat Hostiles . | . . . Follow-up Attacks . | . . . Damage Inflicted 955 | 309 461 185 Guns 898 | 309 460 129 Cannons . | . . . Explosions . | . . . Melee . | . . . Ramming 1 | . 1 . Kinetic 400 | 115 251 34 Thermal 554 | 194 209 151 Explosive . | . . . Electromagnetic . | . . . Impact . | . . . Slashing . | . . . Piercing . | . . . Highest Corruption . | . . . Average Corruption . | . . . Corruption Purged . | . . . Corruption Blocked . | . . . Overload Shots . | . . . Overflow Damage . | . . . Projectiles . | . . . Explosions . | . . . Melee . | . . . Knockbacks . | . . . Impact . | . . . Kinetic . | . . . Secondary . | . . . Self-Inflicted Damage 63 | . . 63 Shots 1 | . . 1 Rammed 2 | . 2 . Targets Rammed 2 | . 2 . Kicked . | . . . Crushed . | . . . Highest Temperature 274 | 60 197 274 Average Temperature 43 | 28 66 24 Received Heat Transfer 576 | . 198 378 Siege Activations . | . . . Robots Corrupted . | . . . Combat Hostiles . | . . . Parts Fried . | . . . Impact Corruptions . | . . . Robots Melted . | . . . Combat Hostiles . | . . . Parts Melted 1 | . 1 . Heat Transferred 1726 | 450 494 782 Parts Sabotaged . | . . . Parts Stolen . | . . . Parts Stripped . | . . . Power Chain Reactions . | . . . Alert | -11 -10 -10 ------- Run | Yrd Mat Sub Peak Influence 169 | 30 169 . Initial 19 | . 19 . Average 62 | 16 73 . Maximum Alert Level . | . . . Low Security (%) 100 | 100 100 . Level 1 . | . . . Level 2 . | . . . Level 3 . | . . . Level 4 . | . . . Level 5 . | . . . High Security . | . . . Max Security . | . . . Squads Dispatched 2 | . 2 . Investigation 1 | . 1 . Extermination . | . . . Reinforcement 1 | . 1 . Assault . | . . . Garrison . | . . . Intercept . | . . . Searches Triggered . | . . . Construction Impeded . | . . . Haulers Reinforced . | . . . Active Scanning Responses . | . . . Cargo Convoy Interrupts . | . . . Stealth | -11 -10 -10 --------- Run | Yrd Mat Sub Distress Signals . | . . . Communications Jammed . | . . . Distress Signals . | . . . Times Spotted 22 | . 12 10 Peak Tracking Total 3 | . 3 3 Tactical Retreats 4 | . 2 2 Traps | -11 -10 -10 ------- Run | Yrd Mat Sub Traps Triggered 1 | . . 1 Indirectly . | . . . Trap Hack Attempts . | . . . Triggered . | . . . Disarmed . | . . . Reprogrammed . | . . . Reused . | . . . Traps Extracted . | . . . Installed 1 | . . 1 Triggered . | . . . Most Traps Carried 1 | . . 1 Machines | -11 -10 -10 ---------- Run | Yrd Mat Sub Machines Disabled . | . . . Max in Single Turn . | . . . Machines Repaired . | . . . Machines Dismantled . | . . . Machines Sabotaged . | . . . Overloaded Fab Kills . | . . . Hacking | -11 -10 -10 --------- Run | Yrd Mat Sub Machines Accessed 3 | . 2 1 Terminals 1 | . 1 . Fabricators . | . . . Repair Stations . | . . . Recycling Units 1 | . 1 . Scanalyzers . | . . . Garrison Access . | . . . Total Hacks 8 | . 5 3 Successful 6 | . 3 3 Failed 2 | . 2 . Catastrophic . | . . . Database Lockouts . | . . . Manual 2 | . 2 . Terminals 2 | . 2 . Fabricators . | . . . Repair Stations . | . . . Recycling Units 3 | . 3 . Scanalyzers . | . . . Garrison Access . | . . . Terminal Hacks 4 | . 1 3 Record 3 | . . 3 Locate Traps 1 | . 1 . Fabricator Hacks . | . . . Repair Station Hacks . | . . . Recycling Unit Hacks 1 | . 1 . Retrieve Components 1 | . 1 . Scanalyzer . | . . . Garrison Access Hacks . | . . . Unauthorized Hacks 1 | . 1 . Terminals 1 | . 1 . Skim 1 | . 1 . Fabricators . | . . . Repair Stations . | . . . Recycling Units . | . . . Scanalyzers . | . . . Garrison Access . | . . . Data Cores Recovered . | . . . Used . | . . . Hacking Detections 2 | . 2 . Full Trace Events 1 | . 1 . Feedback Events . | . . . Feedback Blocked . | . . . Robot Schematics Acquired . | . . . Robots Built . | . . . Authchips . | . . . Time . | . . . Total Robot Build Rating . | . . . Part Schematics Acquired . | . . . Parts Built . | . . . Authchips . | . . . Time . | . . . Total Part Build Rating . | . . . Parts Repaired . | . . . Time . | . . . Parts Recycled . | . . . Recycled Matter . | . . . Retrieved Matter . | . . . Retrieved Components 9 | . 9 . Parts Scanalyzed . | . . . Part Schematics Acquired . | . . . Parts Damaged . | . . . Bothacking | -11 -10 -10 ------------ Run | Yrd Mat Sub Used RIF Installer . | . . . Robots Hacked . | . . . Non-combat . | . . . Combat . | . . . Robot Hacks Applied . | . . . Relay Couplers Released . | . . . Fabnet Peak Effective % . | . . . Robots Rewired . | . . . Allies Hacked . | . . . Hacks Repelled . | . . . Allies | -11 -10 -10 -------- Run | Yrd Mat Sub Total Allies . | . . . Largest Group . | . . . Highest-Rated Group . | . . . Highest-Rated Ally . | . . . Total Orders . | . . . Ally Attacks . | . . . Total Damage . | . . . Kills . | . . . Allies Corrupted . | . . . Allies Melted . | . . . Intel | -11 -10 -10 ------- Run | Yrd Mat Sub Robot Analysis Total . | . . . Derelict Logs Recovered . | . . . Drone Launches . | . . . Drone Recoveries . | . . . Exploration | -11 -10 -10 ------------- Run | Yrd Mat Sub Turns Passed 1562 | 164 655 743 Spaces Moved 1029 | 37 245 747 Core . | . . . Treads 377 | . 229 148 Legs 53 | 37 16 . Wheels . | . . . Hover . | . . . Flight 599 | . . 599 Fastest Speed 37 | 120 120 37 Average Speed 86 | 120 157 61 Slowest Speed 160 | 120 160 160 Overloaded Moves . | . . . Propulsion Burnouts . | . . . Robots Hopped . | . . . Cave-ins Triggered . | . . . Exploration Rate (%) 22 | 4 34 28 Regions Visited 2 Branch Regions 1 Pre-discovered Areas 1 | . . 1 Known Exits Taken . | . . . Unknown Exits Taken 2 | 1 1 . Scrap Searched . | . . . Spaces Dug . | . . . Terrain Destroyed 14 | . . 14 Melee . | . . . Projectile . | . . . AOE 14 | . . 14 Terrain Rammed . | . . . Walls Destroyed . | . . . Machines Disabled . | . . . Actions | -11 -10 -10 --------- Run | Yrd Mat Sub Total 1567 | 109 462 996 Wait 421 | 46 169 206 Move 1027 | 36 244 747 Hop . | . . . Pick Up 11 | . 3 8 Fast Attach 5 | 1 3 1 Attach 5 | . 3 2 Detach . | . . . Swap 3 | . 2 1 Drop 14 | . 4 10 Fire 76 | 26 30 20 Melee . | . . . Ram . | . . . Kick . | . . . Crush 2 | . 2 . Escape Stasis . | . . . Rewire 2 | . 2 . Trap 1 | . . 1 Miscellaneous . | . . . Route ------- -11/Scrapyard -10/Materials (discovered 2 exits: [*Min] / *Sub) -10/Subcaves (discovered 2 exits: [*Mat x2]) History --------- Turn | Location | Event 16 | -11/Scrapyard | Discovered new exit (range 3) 165 | -11/Scrapyard | Entered Materials 307 | -10/Materials | Build established: Mutant 373 | -10/Materials | Discovered new exit (range 7) 804 | -10/Materials | Discovered new exit (range 3) 820 | -10/Materials | Entered Subcaves 828 | -10/Subcaves | Discovered new exit (range 16) 927 | -10/Subcaves | Visited Clippyterm 932 | -10/Subcaves | Learned location of Deep Caves (-7) 1459 | -10/Subcaves | Discovered new exit (range 5) 1507 | -10/Subcaves | A swath of the cavern ceiling suddenly collapsed 1554 | -10/Subcaves | Core integrity fell below 50% 1562 | -10/Subcaves | Core integrity fell below 20% 1563 | -10/Subcaves | Destroyed by QJ-2KG(R) with Subdweller Beam Cannon Last Messages --------------- 01376_ Subatomizers dissect the Aluminum Leg. 01388_ A3-F5F(u) tweaks Twisted Machinery. 01389_ Subatomizers dissect the Aluminum Leg. 01391_ A3-F5F(u) tweaks Twisted Machinery. 01400_ Subatomizers dissect the Aluminum Leg. 01454_ Subatomizers dissect the Aluminum Leg, destroying it. 01459_ Triggered Shrapnel Trap. 01459_ An expanding cloud of shrapnel blasts out in all directions. 01459_ EXIT=FOUND 01459_ A3-F5F(u) tweaks Twisted Machinery. 01500_ A3-F5F(u) cries out in pain. 01500_ A3-F5F(u) destroyed. A swath of the cavern ceiling suddenly collapses. 01535_ Subatomizers dissect the Lgt. Ion Engine. 01536_ Enh. Flamer destroyed. 01553_ Lgt. Ion Engine destroyed. 01553_ Particle Gun destroyed. 01555_ Subatomizers dissect the Lgt. Ion Engine. 01557_ Flight Unit destroyed. 01561_ Critical hit (Meltdown: +300). Map ----- +----------------------------------------------------+ | ??????????????????????## ##????????????????????? | | ???????????????????????# #?????????????????????? | | ??????????????????????## #?????????????????????? | | ?????????????????????## %##?????????????????????? | | ?????????????????????# #??????????????????????? | | ?????????????????????# #??????????????????????? | | ?????????????????????# #????????????? ??????? | | ?????????????????????# ##??????????? #?????? | | ?????????????????????# % #??????????? #?????? | | ?????????????????????# #?????????? #?????? | | ?????????????????????# ##?????????# ##????? | | ?????????????????????# #?????????? #????? | | ????????????????????## RR ###???##?? ### #?????? | | ?????????????????##?# #???#"######"###?????? | | ?????????????????# ## ##????"""#"##"#"#?????? | | ????????????????## #????? #"#"#""#"####### | | ????????????????# % ########""#""#"####"" # | | ????????????????#### * ### ###"#""##"""""#"## | | ????????????????##### ### #;#""###"##"###? | | ???????????????## # ## ######""###"#?? | | ??????????????## ##??#"##""##?? | | ??????????????# #??##"#"#????? | | ??????????????# #### ####""" ##???? | | ??????????????# ##??# ## " #???? | | ??????????????# #???# ##??? | | ??????????????# #?#####@ ## #??? | | ??????????????## #### ## ##?# ##?? | | ???????????????##?#"""" #### #?? | | #??################ ### | | #### # " """" #"""#" ### # | | =[ """ # # ## # | | % """ # # ## ####### | | ### #""" """### ### #?????? | | ###?##### """""#?####### ##?# ##?????? | | ????????#####"<" #??????## ##?# ##??????? | | ???????????? " ""#???????#######??# ####???????? | | ???????????#######????????????????#####??????????? | | ?????????????????????????????????????????????????? | | ?????????????????????????????????????????????????? | | ?????????????????????????????????????????????????? | | ?????????????????????????????????????????????????? | | ?????????????????????????????????????????????????? | | ?????????????????????????????????????????????????? | | ?????????????????????????????????????????????????? | | ?????????????????????????????????????????????????? | | ?????????????????????????????????????????????????? | | ?????????????????????????????????????????????????? | | ?????????????????????????????????????????????????? | | ?????????????????????????????????????????????????? | | ?????????????????????????????????????????????????? | +----------------------------------------------------+ Best States ------------- Heat Dissipation 25 Energy Generation 10 Energy Capacity 250 Matter Stores 300 Matter Capacity 300 Sight Range 16 Terrain Scan Density 10 Evasion (%) 62 Recoil Reduction 2 Item Schematics ----------------- None Robot Schematics ------------------ None Fabricated ------------ Nothing Alien Tech Used ----------------- None Achievements -------------- None Challenges ------------ None Game ------ Seed WarpDataComputer Manual? 0 Play Time 00:12:13 Cumulative 360.0 hours Start 2024.08.20 @ 17:06:18 End 2024.08.20 @ 17:16:22 Sessions 1 Manual Loads 0 Difficulty Rogue Special Mode None Game No. 133 Rogue 131 Adventurer 2 Explorer 0 Win Type - Total 16 Types 6/0/8/1/0/0/0/1/0 Lore% 73 Gallery% 84 Achievement% 75 Wizard Run 0 Options --------- Layout 0 ASCII 0 Keyboard 0 Movement Numpad Keybinds 0 Fullscreen 2 Font 24/Smallcaps Map View 76x50 Zoom Use 0% Tactical HUD 1 Map Filters NONE Filters NONE Steam 1 RUN: 165e189f-e07c-40e0-a0a3-6c82377067a6